bitfinex-derivatives/quotes_BTCF0:USTF0_20250814
["timestamp","ask_amount","ask_price","bid_price","bid_amount"]
[1755214047247,0.70952287,118550.0,118540.0,0.11909]
[1755214048147,1.07032287,118560.0,118550.0,0.11909]
[1755214049644,1.07132287,118560.0,118550.0,0.11909]
[1755214049850,0.71052287,118560.0,118550.0,0.11909]
[1755214054352,0.001,118560.0,118550.0,0.11909]
[1755214054552,0.71052287,118560.0,118550.0,0.11909]
[1755214057351,0.71052287,118560.0,118550.0,0.10415]
[1755214058251,0.001,118560.0,118550.0,0.11909]
[1755214058647,0.71052287,118560.0,118550.0,0.11909]
[1755214059156,0.001,118560.0,118550.0,0.11909]
[1755214059351,0.71052287,118560.0,118550.0,0.11909]
[1755214061159,0.001,118560.0,118550.0,0.11909]
[1755214061357,0.71052287,118560.0,118550.0,0.11909]
[1755214066165,0.71052287,118560.0,118550.0,0.07131]
[1755214066659,0.71052287,118560.0,118550.0,0.04909]
[1755214066860,0.71052287,118560.0,118550.0,0.02377]
[1755214067566,0.71052287,118560.0,118540.0,0.38457]
[1755214067765,0.70952287,118550.0,118540.0,0.45767]
[1755214068064,0.001,118560.0,118550.0,0.02377]
[1755214068262,0.71052287,118560.0,118550.0,0.02377]
[1755214068460,0.001,118560.0,118550.0,0.02377]
[1755214068661,0.70952287,118560.0,118550.0,0.02377]
[1755214069467,0.71052287,118560.0,118550.0,0.02377]
[1755214074074,0.001,118560.0,118550.0,1.19071287]
[1755214074376,0.71052287,118560.0,118550.0,0.48119]
[1755214074673,8.17506368,118580.0,118550.0,0.48119]
[1755214074874,0.70952287,118560.0,118550.0,0.45742]
[1755214075462,0.70952287,118560.0,118550.0,0.48141]
[1755214075863,0.70952287,118570.0,118550.0,0.45742]
[1755214076068,0.73249732,118570.0,118560.0,0.02399]
[1755214076670,0.02297445,118570.0,118560.0,0.02399]
[1755214076872,0.73249732,118570.0,118560.0,0.02399]
[1755214077072,0.73249732,118570.0,118560.0,0.05878]
[1755214077474,0.73349732,118570.0,118560.0,0.05878]
[1755214078972,0.73349732,118570.0,118560.0,0.11949]
[1755214079169,0.73249732,118570.0,118560.0,0.11949]
[1755214079372,0.73349732,118570.0,118560.0,0.11949]
[1755214080168,0.71052287,118570.0,118560.0,0.11949]
[1755214080373,0.73349507,118570.0,118560.0,0.48029]
[1755214080574,0.73349507,118570.0,118560.0,0.11949]
[1755214083577,0.73349507,118570.0,118560.0,0.48029]
[1755214083778,0.71052287,118570.0,118560.0,0.48029]
[1755214083970,0.001,118570.0,118560.0,0.48029]
[1755214084171,0.71052287,118570.0,118560.0,0.48029]
[1755214087989,0.001,118570.0,118560.0,0.48029]
[1755214088283,0.71052287,118570.0,118560.0,0.48029]
[1755214088684,0.63927054,118570.0,118560.0,0.48029]
[1755214088890,0.63927054,118570.0,118560.0,0.49910252]
[1755214091580,0.001,118570.0,118560.0,0.49910252]
[1755214091786,0.63927054,118570.0,118560.0,1.13737306]
[1755214091973,0.63927054,118570.0,118560.0,0.49910252]
[1755214092181,0.001,118570.0,118560.0,0.49910252]
[1755214092477,0.63927054,118570.0,118560.0,0.49910252]
[1755214094383,0.001,118570.0,118560.0,0.49910252]
[1755214094583,0.63927054,118570.0,118560.0,0.49910252]
[1755214097090,0.001,118570.0,118560.0,0.49910252]
[1755214097390,0.63927054,118570.0,118560.0,0.49910252]
[1755214097784,0.001,118570.0,118560.0,0.49910252]
[1755214098187,0.63927054,118570.0,118560.0,0.49910252]
[1755214100985,0.001,118570.0,118560.0,0.49910252]
[1755214101289,0.63927054,118570.0,118560.0,0.49910252]
[1755214105182,0.001,118570.0,118560.0,0.49910252]
[1755214105391,0.63927054,118570.0,118560.0,0.49910252]
[1755214105896,0.63927054,118570.0,118560.0,0.48029]
[1755214106294,0.63927054,118570.0,118560.0,0.38479]
[1755214106498,0.63927054,118570.0,118560.0,0.91207]
[1755214106688,0.63927054,118570.0,118560.0,0.11851]
[1755214126398,0.001,118570.0,118560.0,1.90954054]
[1755214126797,0.63927054,118570.0,118560.0,1.90954054]
[1755214127805,7.65556083,118580.0,118560.0,1.90954054]
[1755214128006,7.63827054,118580.0,118570.0,0.47916]
[1755214128316,7.0,118580.0,118570.0,1.22140643]
[1755214128606,7.0,118580.0,118570.0,1.32140643]
[1755214128801,7.0,118580.0,118570.0,0.68313589]
[1755214129000,7.0,118580.0,118570.0,1.32140643]
[1755214129706,7.0,118580.0,118570.0,1.22140643]
[1755214131311,7.001,118580.0,118570.0,1.28802762]
[1755214133311,7.001,118580.0,118570.0,1.20374772]
[1755214133909,7.001,118580.0,118570.0,0.56547718]
[1755214134105,7.001,118580.0,118570.0,1.20374772]
[1755214135011,7.001,118580.0,118570.0,0.56547718]
[1755214135210,7.001,118580.0,118570.0,1.20374772]
[1755214135809,7.63927054,118580.0,118570.0,0.51717718]
[1755214135999,7.001,118580.0,118570.0,1.30777718]
[1755214136207,7.63927054,118580.0,118570.0,1.30777718]
[1755214136404,7.63927054,118580.0,118570.0,1.35351718]
[1755214138212,7.63927054,118580.0,118570.0,1.99178772]
[1755214140306,7.63927054,118580.0,118570.0,1.35351718]
[1755214140506,7.63927054,118580.0,118570.0,1.99178772]
[1755214142607,7.001,118580.0,118570.0,1.99178772]
[1755214142808,7.63927054,118580.0,118570.0,1.99178772]
[1755214144022,7.63927054,118580.0,118570.0,1.94604772]
[1755214144212,7.001,118580.0,118570.0,1.99178772]
[1755214144519,7.63927054,118580.0,118570.0,1.99178772]
[1755214145418,7.63927054,118580.0,118570.0,1.35351718]
[1755214146822,7.001,118580.0,118570.0,1.35351718]
[1755214152625,7.001,118580.0,118570.0,1.99178772]
[1755214162644,7.63927054,118580.0,118570.0,1.35351718]
[1755214162845,7.63927054,118580.0,118570.0,1.94424772]
[1755214163234,7.001,118580.0,118570.0,1.94424772]
[1755214164046,7.001,118580.0,118570.0,1.33799718]
[1755214164247,7.001,118580.0,118570.0,1.97626772]
[1755214164450,7.001,118580.0,118570.0,1.99045772]
[1755214168547,7.001,118580.0,118570.0,2.71300816]
[1755214168742,7.001,118580.0,118570.0,2.07473762]
[1755214169642,7.001,118580.0,118570.0,1.43646708]
[1755214169844,7.001,118580.0,118570.0,2.07473762]
[1755214180144,7.001,118580.0,118570.0,1.43646708]
[1755214180345,7.001,118580.0,118570.0,2.07473762]
[1755214186859,7.001,118580.0,118570.0,3.57473762]
[1755214188766,7.001,118580.0,118570.0,2.70165772]
[1755214189064,7.001,118580.0,118570.0,3.49173772]
[1755214189266,7.001,118580.0,118570.0,3.57601762]
[1755214189456,7.001,118580.0,118570.0,1.99173772]
[1755214189659,7.001,118580.0,118570.0,2.07601762]
[1755214190672,7.001,118580.0,118570.0,1.71521762]
[1755214190975,7.001,118580.0,118570.0,2.35253772]
[1755214191871,7.001,118580.0,118570.0,2.43681762]
[1755214193068,7.001,118580.0,118570.0,2.43549762]
[1755214194867,7.001,118580.0,118570.0,1.79722708]
[1755214195172,7.001,118580.0,118570.0,2.43549762]
[1755214195472,7.001,118580.0,118570.0,3.93549762]
[1755214200767,7.63927054,118580.0,118570.0,2.30711718]
[1755214200966,7.63927054,118580.0,118570.0,1.59587718]
[1755214201668,7.001,118580.0,118570.0,2.23414772]
[1755214201868,7.63927054,118580.0,118570.0,2.25779772]
[1755214204972,7.63927054,118580.0,118570.0,1.46903772]
[1755214205178,7.63927054,118580.0,118570.0,2.25731772]
[1755214205678,7.64007054,118580.0,118570.0,0.80711718]
[1755214205979,7.64007054,118580.0,118570.0,0.87459718]
[1755214206174,7.001,118580.0,118570.0,0.87459718]
[1755214206372,7.001,118580.0,118570.0,1.23539718]
[1755214206373,7.63927054,118580.0,118570.0,1.23539718]
[1755214208379,7.63927054,118580.0,118570.0,1.25904718]
[1755214208569,7.001,118580.0,118570.0,1.25904718]
[1755214208873,7.001,118580.0,118570.0,2.11318762]
[1755214209173,7.001,118580.0,118570.0,2.12856762]
[1755214210879,7.001,118580.0,118570.0,1.49029708]
[1755214211068,7.001,118580.0,118570.0,2.11477467]
[1755214212873,7.001,118580.0,118570.0,2.09587868]
[1755214213078,7.001,118580.0,118570.0,2.11479782]
[1755214213774,7.001,118580.0,118570.0,0.60114329]
[1755214213975,7.001,118580.0,118570.0,1.29042329]
[1755214215375,7.001,118580.0,118570.0,1.99918078]
[1755214215966,7.001,118580.0,118570.0,2.01376078]
[1755214216575,7.001,118580.0,118570.0,2.01381013]
[1755214217179,7.001,118580.0,118570.0,2.01417676]
[1755214226386,7.001,118580.0,118570.0,2.09845666]
[1755214232301,7.001,118580.0,118570.0,2.09765666]
[1755214233909,7.001,118580.0,118570.0,2.09755628]
[1755214234409,7.001,118580.0,118570.0,2.09725986]
[1755214234709,7.001,118580.0,118570.0,1.17955996]
[1755214234905,7.001,118580.0,118570.0,1.25740247]
[1755214235797,7.001,118580.0,118570.0,1.96615996]
[1755214236804,7.001,118580.0,118570.0,1.99800996]
[1755214237003,7.001,118580.0,118570.0,2.01178996]
[1755214237807,7.001,118580.0,118570.0,1.99328868]
[1755214238013,7.001,118580.0,118570.0,2.01216257]
[1755214241412,7.001,118580.0,118570.0,1.96653257]
[1755214241620,7.001,118580.0,118570.0,2.09644247]
[1755214242315,7.001,118580.0,118570.0,2.01216257]
[1755214243517,7.001,118580.0,118570.0,1.30340508]
[1755214243712,7.001,118580.0,118570.0,2.01216257]
[1755214244115,7.001,118580.0,118570.0,1.30340508]
[1755214244413,7.001,118580.0,118570.0,1.22556257]
[1755214244613,7.001,118580.0,118570.0,2.01288257]
[1755214245014,7.001,118580.0,118570.0,1.22556257]
[1755214245202,7.001,118580.0,118570.0,2.01276257]
[1755214245615,7.001,118580.0,118570.0,0.44629508]
[1755214245810,7.001,118580.0,118570.0,1.23345508]
[1755214246010,7.001,118580.0,118570.0,0.44629508]
[1755214246210,7.001,118580.0,118570.0,1.23349508]
[1755214246414,7.001,118580.0,118570.0,1.23341508]
[1755214247410,7.001,118580.0,118570.0,0.44629508]
[1755214247612,7.001,118580.0,118570.0,1.23337508]
[1755214248111,7.001,118580.0,118570.0,1.23325508]
[1755214251315,7.001,118580.0,118570.0,1.25813508]
[1755214251516,7.001,118580.0,118570.0,1.99874257]
[1755214251719,7.001,118580.0,118570.0,2.01252257]
[1755214252719,7.001,118580.0,118570.0,1.99874257]
[1755214252918,7.001,118580.0,118570.0,1.99898257]
[1755214253119,7.001,118580.0,118570.0,1.96713257]
[1755214253820,7.001,118580.0,118570.0,1.25837508]
[1755214259014,7.0179381,118580.0,118570.0,1.23289508]
[1755214259717,7.0179381,118580.0,118570.0,1.25561508]
[1755214260312,7.0179381,118580.0,118570.0,0.44629508]
[1755214260519,7.72669559,118580.0,118570.0,0.06662119]
[1755214260722,7.72669559,118580.0,118570.0,0.7866]
[1755214260923,7.72669559,118580.0,118570.0,0.0689201]
[1755214261122,7.89616759,118580.0,118560.0,1.1658]
[1755214261424,0.70875749,118570.0,118550.0,0.37986188]
[1755214261621,0.70875749,118560.0,118550.0,0.37986188]
[1755214261926,0.70875749,118560.0,118550.0,1.16646188]
[1755214262622,0.71705962,118570.0,118550.0,1.16646188]
[1755214262926,0.71785962,118570.0,118550.0,1.18918188]
[1755214263125,0.70955749,118570.0,118550.0,1.18918188]
[1755214263527,0.70955749,118570.0,118550.0,0.40258188]
[1755214263730,0.70955749,118570.0,118560.0,0.7866]
[1755214264421,0.70875749,118570.0,118550.0,0.40258188]
[1755214264622,0.70875749,118570.0,118560.0,0.7866]
[1755214265129,0.70875749,118570.0,118560.0,0.80932]
[1755214265331,0.70975749,118570.0,118560.0,0.80932]
[1755214267825,0.001,118570.0,118560.0,0.80932]
[1755214268029,0.70975749,118570.0,118560.0,0.80932]
[1755214270635,0.70975749,118570.0,118560.0,0.84419]
[1755214271131,0.70975749,118570.0,118560.0,0.86916]
[1755214271333,0.70975749,118570.0,118560.0,0.88303]
[1755214271928,0.70975749,118570.0,118560.0,0.90601]
[1755214275045,0.001,118570.0,118560.0,0.90601]
[1755214275336,0.70975749,118570.0,118560.0,0.90601]
[1755214280031,0.70975749,118570.0,118560.0,0.90713]
[1755214284941,0.70975749,118570.0,118560.0,0.02272]
[1755214285140,2.02623749,118570.0,118550.0,0.02347]
[1755214285339,1.06955749,118560.0,118530.0,0.37931566]
[1755214285544,0.3608,118560.0,118540.0,0.88304]
[1755214285740,0.3608,118560.0,118550.0,0.02347]
[1755214286042,0.3608,118560.0,118550.0,0.81031]
[1755214286851,1.06955749,118560.0,118550.0,0.81031]
[1755214288147,1.07055749,118560.0,118550.0,0.81031]
[1755214290048,1.07055749,118560.0,118550.0,0.84377]
[1755214290639,1.07055749,118560.0,118550.0,0.88329]
[1755214291047,1.07055749,118560.0,118550.0,0.90651]
[1755214295052,1.07055749,118560.0,118550.0,0.11967]
[1755214295252,1.07055749,118560.0,118550.0,0.90655]
[1755214296754,1.07055749,118560.0,118550.0,0.02347]
[1755214296952,1.26215947,118560.0,118550.0,0.02347]
[1755214298159,1.2789678,118560.0,118550.0,0.02347]
[1755214303658,1.1102718,118560.0,118550.0,0.02347]
[1755214305163,1.08736582,118560.0,118550.0,0.02347]
[1755214305359,1.11025353,118560.0,118550.0,0.02347]
[1755214305752,1.11025353,118560.0,118550.0,0.08247]
[1755214306058,1.11025353,118560.0,118550.0,0.11967]
[1755214307160,0.40149604,118560.0,118550.0,0.11967]
[1755214307352,0.01780833,118560.0,118550.0,0.11967]
[1755214307667,0.72656582,118560.0,118550.0,0.90651]
[1755214318374,0.72656582,118560.0,118550.0,0.11967]
[1755214318760,0.72656582,118560.0,118550.0,0.90639]
[1755214319573,0.01780833,118560.0,118550.0,0.90639]
[1755214319761,0.72656582,118560.0,118550.0,0.90639]
[1755214320770,8.54328214,118580.0,118550.0,1.90503749]
[1755214320965,8.54328214,118580.0,118570.0,0.11951]
[1755214321270,8.09508214,118580.0,118570.0,0.90619]
[1755214321468,7.0169381,118580.0,118570.0,0.90619]
[1755214322273,7.0179381,118580.0,118570.0,0.90619]
[1755214322573,7.0179381,118580.0,118570.0,0.97193477]
[1755214323266,7.0179381,118580.0,118570.0,1.33273477]
[1755214325069,7.0169381,118580.0,118570.0,1.33273477]
[1755214326966,7.0169381,118580.0,118570.0,1.41701467]
[1755214327163,7.0,118580.0,118570.0,1.41781467]
[1755214327466,7.0,118580.0,118570.0,1.33273477]
[1755214336784,7.01781,118580.0,118570.0,1.33273477]
[1755214337787,7.01781,118580.0,118570.0,1.33237477]
[1755214346001,7.72656749,118580.0,118570.0,1.21286477]
[1755214346198,7.72656749,118580.0,118570.0,1.23540477]
[1755214346797,7.72656749,118580.0,118570.0,1.26978477]
[1755214347800,7.01781,118580.0,118570.0,1.26978477]
[1755214347997,7.72656749,118580.0,118570.0,1.26978477]
[1755214348202,7.01781,118580.0,118570.0,1.28446477]
[1755214352502,7.01781,118580.0,118570.0,1.23508477]
[1755214352703,7.65589149,118580.0,118570.0,1.23508477]
[1755214354402,7.65589149,118580.0,118570.0,1.28414477]
[1755214354709,7.65589149,118580.0,118570.0,1.23508477]
[1755214356213,7.65589149,118580.0,118570.0,1.26946477]
[1755214356510,7.65589149,118580.0,118570.0,0.42654477]
[1755214356714,7.65589149,118580.0,118570.0,1.21250477]
[1755214356918,7.65589149,118580.0,118570.0,0.42654477]
[1755214357215,7.65589149,118580.0,118570.0,1.23500477]
[1755214358620,7.72682325,118580.0,118570.0,1.23500477]
[1755214361919,7.72682325,118580.0,118570.0,1.21246477]
[1755214363018,7.01781,118580.0,118570.0,1.21246477]
[1755214363220,7.72682325,118580.0,118570.0,1.21246477]
[1755214363818,7.72682325,118580.0,118570.0,1.23500477]
[1755214364429,8.09276975,118580.0,118560.0,0.38334]
[1755214364723,1.06981325,118570.0,118560.0,0.7858]
[1755214365109,1.09277358,118570.0,118560.0,0.7858]
[1755214365319,1.06981325,118570.0,118540.0,1.54918]
[1755214365515,0.3608,118570.0,118550.0,0.8083]
[1755214365826,0.70901325,118560.0,118550.0,0.8083]
[1755214368022,0.70901325,118560.0,118550.0,0.8093]
[1755214368417,0.70901325,118560.0,118550.0,0.84368]
[1755214368618,0.70901325,118560.0,118550.0,0.86811]
[1755214369020,0.70901325,118560.0,118550.0,0.88279]
[1755214369220,0.70901325,118560.0,118550.0,0.90397]
[1755214372321,1.08698783,118570.0,118550.0,0.83237]
[1755214372523,1.08698783,118570.0,118560.0,0.11721]
[1755214372724,0.72618783,118570.0,118560.0,0.11721]
[1755214372919,0.72618783,118570.0,118560.0,0.47801]
[1755214373120,0.01717458,118570.0,118560.0,0.47801]
[1755214376830,0.72618783,118570.0,118560.0,0.47801]
[1755214378726,0.01717458,118570.0,118560.0,0.47801]
[1755214379430,0.01717458,118570.0,118560.0,0.562297]
[1755214379824,0.01717458,118570.0,118560.0,0.662297]
[1755214380724,0.01717458,118570.0,118560.0,0.47801]
[1755214381122,0.01717458,118570.0,118560.0,0.57801]
[1755214381529,0.01717458,118570.0,118560.0,0.47801]
[1755214381722,0.01717458,118570.0,118560.0,0.57801]
[1755214382132,0.01717458,118570.0,118560.0,0.662297]
[1755214382328,0.01717458,118570.0,118560.0,0.663297]
[1755214386035,0.01717458,118570.0,118560.0,0.68222299]
[1755214386732,0.01717458,118570.0,118560.0,0.68122299]
[1755214386930,0.01717458,118570.0,118560.0,0.68322299]
[1755214389434,0.01717458,118570.0,118560.0,1.39223624]
[1755214389635,7.0,118580.0,118560.0,1.48920564]
[1755214389826,7.0,118580.0,118570.0,1.21574]
[1755214390630,7.0,118580.0,118570.0,1.28333873]
[1755214391733,7.0,118580.0,118570.0,2.07663188]
[1755214391941,7.0,118580.0,118570.0,1.36761863]
[1755214392137,7.0,118580.0,118570.0,1.36861863]
[1755214406435,7.01718,118580.0,118570.0,1.28433873]
[1755214406740,7.65516295,118580.0,118570.0,1.92232168]
[1755214414044,7.65516295,118580.0,118570.0,1.21391873]
[1755214414349,7.65596295,118580.0,118570.0,1.21391873]
[1755214414754,7.01798,118580.0,118570.0,1.21391873]
[1755214415052,7.65516295,118580.0,118570.0,1.21391873]
[1755214415759,7.65516295,118580.0,118570.0,0.85311873]
[1755214418256,7.01718,118580.0,118570.0,0.85311873]
[1755214418461,7.65516295,118580.0,118570.0,0.85311873]
[1755214422853,7.01718,118580.0,118570.0,0.85311873]
[1755214423253,7.65516295,118580.0,118570.0,0.85311873]
[1755214424055,7.65516295,118580.0,118570.0,0.06859873]
[1755214424250,7.65516295,118580.0,118570.0,0.85287873]
[1755214424446,7.65516295,118580.0,118570.0,0.06859873]
[1755214424752,7.65516295,118580.0,118570.0,0.83561873]
[1755214425054,7.65516295,118580.0,118560.0,0.01892599]
[1755214425055,9.4389459,118580.0,118560.0,0.80312599]
[1755214425255,0.63798295,118570.0,118560.0,0.80312599]
[1755214425649,0.63798295,118570.0,118560.0,0.01892599]
[1755214425848,1.2759659,118570.0,118560.0,0.80312599]
[1755214426060,1.6367659,118570.0,118560.0,0.80312599]
[1755214426358,1.6367659,118570.0,118560.0,0.80512599]
[1755214426752,1.07014698,118570.0,118560.0,0.80312599]
[1755214426961,1.0783642,118570.0,118560.0,0.80512599]
[1755214428246,1.0783642,118570.0,118560.0,0.02092599]
[1755214428451,1.0783642,118570.0,118560.0,0.80508599]
[1755214429063,1.0793642,118570.0,118560.0,0.80308599]
[1755214429361,1.2480442,118570.0,118560.0,0.01892599]
[1755214429550,1.2480442,118570.0,118560.0,0.80308599]
[1755214430655,1.0793642,118570.0,118560.0,0.80308599]
[1755214430860,1.2480442,118570.0,118560.0,0.80308599]
[1755214431462,1.2480442,118570.0,118560.0,0.01892599]
[1755214432665,1.0793642,118570.0,118560.0,0.01892599]
[1755214433157,1.0793642,118570.0,118560.0,0.04350599]
[1755214435858,1.0793642,118570.0,118560.0,0.01892599]
[1755214437059,1.2480442,118570.0,118540.0,0.02418]
[1755214437266,0.70934698,118550.0,118540.0,0.83274]
[1755214437467,0.70934698,118550.0,118540.0,0.90397]
[1755214439868,0.70934698,118550.0,118540.0,0.90497]
[1755214440471,0.70934698,118550.0,118540.0,0.88079]
[1755214440970,0.70934698,118550.0,118540.0,0.90497]
[1755214446471,0.70934698,118550.0,118540.0,0.12097]
[1755214446768,0.63845139,118550.0,118540.0,0.90481]
[1755214447568,0.99925139,118560.0,118550.0,0.11997]
[1755214447775,1.63770278,118560.0,118550.0,0.11997]
[1755214454275,1.66060347,118560.0,118550.0,0.11997]
[1755214456376,1.66060347,118560.0,118550.0,0.10555]
[1755214459368,1.66060347,118560.0,118550.0,0.11997]
[1755214460682,1.66060347,118560.0,118550.0,0.13855868]
[1755214462684,0.66135208,118560.0,118550.0,0.13855868]
[1755214462982,1.29980347,118560.0,118550.0,0.13855868]
[1755214463881,0.66135208,118560.0,118550.0,0.49935868]
[1755214464088,0.63845139,118560.0,118550.0,0.49935868]
[1755214464987,0.02535484,118570.0,118550.0,0.42623868]
[1755214465178,0.04826849,118570.0,118560.0,0.89916]
[1755214465374,0.68671988,118570.0,118560.0,0.89916]
[1755214466481,0.68771988,118570.0,118560.0,0.89916]
[1755214466683,1.04851988,118570.0,118560.0,0.89916]
[1755214466885,1.68697127,118570.0,118560.0,0.89916]
[1755214467083,1.32617127,118570.0,118560.0,0.89916]
[1755214467774,0.67950266,118570.0,118560.0,0.89916]
[1755214468086,0.67950266,118570.0,118560.0,0.89904]
[1755214469487,0.04105127,118570.0,118560.0,0.89904]
[1755214469687,0.67950266,118570.0,118560.0,0.89904]
[1755214470190,0.6879057,118570.0,118560.0,0.89904]
[1755214470388,0.66499205,118570.0,118560.0,0.89904]
[1755214472787,0.02654066,118570.0,118560.0,0.89904]
[1755214472985,0.65658901,118570.0,118560.0,0.89904]
[1755214473893,0.01813762,118570.0,118560.0,0.89904]
[1755214474093,0.65658901,118570.0,118560.0,0.89904]
[1755214475688,0.01813762,118570.0,118560.0,0.89904]
[1755214476194,0.65658901,118570.0,118560.0,0.89904]
[1755214480196,0.65658901,118570.0,118560.0,1.25984]
[1755214482102,0.01813762,118570.0,118560.0,1.25984]
[1755214482296,0.65658901,118570.0,118560.0,1.25984]
[1755214487799,0.01813762,118570.0,118560.0,1.25984]
[1755214488007,0.65658901,118570.0,118560.0,1.25984]
[1755214492014,0.65658901,118570.0,118560.0,1.25904]
[1755214493112,0.01813762,118570.0,118560.0,1.25904]
[1755214493413,0.65658901,118570.0,118560.0,1.25904]
[1755214500316,0.01813762,118570.0,118560.0,1.25904]
[1755214500619,0.65658901,118570.0,118560.0,1.25904]
[1755214503920,0.01813762,118570.0,118560.0,1.25904]
[1755214504122,0.65658901,118570.0,118560.0,1.89749139]
[1755214504522,0.65658901,118570.0,118560.0,1.25904]
[1755214505326,0.63945139,118570.0,118560.0,1.25904]
[1755214505522,0.001,118570.0,118560.0,1.25904]
[1755214505924,0.63945139,118570.0,118560.0,1.25904]
[1755214507423,0.001,118570.0,118560.0,1.89749139]
[1755214507618,0.63945139,118570.0,118560.0,1.89749139]
[1755214507820,0.63945139,118570.0,118560.0,1.25904]
[1755214508825,0.63945139,118570.0,118560.0,1.89749139]
[1755214510732,0.63945139,118570.0,118560.0,1.25904]
[1755214510931,0.001,118570.0,118560.0,1.89749139]
[1755214511232,0.001,118570.0,118560.0,2.08177839]
[1755214514035,0.001,118570.0,118560.0,1.99749139]
[1755214514338,0.001,118570.0,118560.0,1.97512139]
[1755214514731,0.001,118570.0,118560.0,2.05940839]
[1755214515636,0.001,118570.0,118560.0,1.420957]
[1755214515936,0.001,118570.0,118560.0,2.05940839]
[1755214517538,0.63945139,118570.0,118560.0,2.05940839]
[1755214517938,0.001,118570.0,118560.0,2.05940839]
[1755214519339,0.63945139,118570.0,118560.0,2.05940839]
[1755214519739,0.001,118570.0,118560.0,2.05940839]
[1755214519930,0.63945139,118570.0,118560.0,2.05940839]
[1755214522541,0.001,118570.0,118560.0,2.05940839]
[1755214523340,0.001,118570.0,118560.0,1.420957]
[1755214523539,0.001,118570.0,118560.0,2.05940839]
[1755214523739,0.001,118570.0,118560.0,1.420957]
[1755214523939,0.001,118570.0,118560.0,2.05940839]
[1755214528039,0.001,118570.0,118560.0,1.420957]
[1755214528242,0.001,118570.0,118560.0,2.05940839]
[1755214528447,0.001,118570.0,118560.0,1.420957]
[1755214528635,0.001,118570.0,118560.0,2.05940839]
[1755214529844,0.001,118570.0,118560.0,2.42020839]
[1755214533646,0.001,118570.0,118560.0,1.781757]
[1755214533847,0.63945139,118570.0,118560.0,2.42020839]
[1755214534249,0.001,118570.0,118560.0,2.42020839]
[1755214536046,0.001,118570.0,118560.0,1.781757]
[1755214536247,0.001,118570.0,118560.0,2.42020839]
[1755214537653,0.001,118570.0,118560.0,1.781757]
[1755214537842,0.001,118570.0,118560.0,2.42020839]
[1755214542749,0.001,118570.0,118560.0,1.69747]
[1755214542947,0.001,118570.0,118560.0,2.33592139]
[1755214543247,0.001,118570.0,118560.0,2.42020999]
[1755214544158,0.001,118570.0,118560.0,2.33592139]
[1755214544858,0.001,118570.0,118560.0,2.42020999]
[1755214546558,0.001,118570.0,118560.0,1.7817586]
[1755214546766,0.001,118570.0,118560.0,2.42020999]
[1755214549076,0.001,118570.0,118560.0,2.33592139]
[1755214549264,0.001,118570.0,118560.0,1.69747]
[1755214549571,0.001,118570.0,118560.0,2.33592139]
[1755214551174,0.001,118570.0,118560.0,1.69747]
[1755214551368,0.63945139,118570.0,118560.0,1.69747]
[1755214551673,0.63945139,118570.0,118560.0,2.23712139]
[1755214552975,0.001,118570.0,118560.0,2.23712139]
[1755214553175,0.63945139,118570.0,118560.0,2.23712139]
[1755214555773,0.63945139,118570.0,118560.0,1.59867]
[1755214556076,0.63945139,118570.0,118560.0,2.23712139]
[1755214557569,0.63945139,118570.0,118560.0,1.59867]
[1755214557767,0.63945139,118570.0,118560.0,2.23712139]
[1755214559782,0.63945139,118570.0,118560.0,1.59867]
[1755214559975,0.63945139,118570.0,118560.0,2.23712139]
[1755214560179,0.63945139,118570.0,118560.0,1.59867]
[1755214560376,0.63945139,118570.0,118560.0,2.23712139]
[1755214562085,0.63945139,118570.0,118560.0,0.83836]
[1755214562267,0.65636608,118570.0,118560.0,1.62164]
[1755214563684,0.65636608,118570.0,118560.0,0.83836]
[1755214563989,0.65636608,118570.0,118560.0,1.62164]
[1755214564883,0.01791469,118570.0,118560.0,1.62164]
[1755214565185,0.65636608,118570.0,118560.0,1.62164]
[1755214572985,0.65636608,118570.0,118560.0,0.83836]
[1755214573190,0.65636608,118570.0,118560.0,1.62068]
[1755214573392,0.65636608,118570.0,118560.0,0.83836]
[1755214573692,0.65636608,118570.0,118560.0,1.62064]
[1755214575791,0.65636608,118570.0,118560.0,0.89904]
[1755214575982,0.65636608,118570.0,118560.0,0.11676]
[1755214576182,0.65636608,118570.0,118560.0,0.89904]
[1755214579794,0.01791469,118570.0,118560.0,0.89904]
[1755214580291,0.65636608,118570.0,118560.0,0.89904]
[1755214582797,0.01791469,118570.0,118560.0,0.89904]
[1755214583096,0.65636608,118570.0,118560.0,0.89904]
[1755214583985,0.65636608,118570.0,118560.0,1.25984]
[1755214584194,0.65636608,118570.0,118560.0,0.89904]
[1755214587701,0.65636608,118570.0,118560.0,0.90092]
[1755214596811,0.65636608,118570.0,118560.0,0.11864]
[1755214597016,1.65561747,118570.0,118560.0,0.02257]
[1755214597314,1.29481747,118570.0,118560.0,0.83871]
[1755214597515,1.29481747,118570.0,118560.0,0.90099]
[1755214597718,1.65561747,118570.0,118560.0,0.90099]
[1755214598314,1.6639408,118570.0,118560.0,0.90099]
[1755214602614,1.6639408,118570.0,118560.0,0.85222]
[1755214602819,1.6639408,118570.0,118560.0,0.88608]
[1755214603420,1.6639408,118570.0,118560.0,0.90099]
[1755214607722,0.03785,118560.0,118550.0,0.06630442]
[1755214607912,1.67555278,118560.0,118550.0,0.89735442]
[1755214608115,1.67555278,118560.0,118550.0,0.84858442]
[1755214608613,1.67555278,118560.0,118550.0,0.88244442]
[1755214608812,1.67555278,118560.0,118550.0,0.89735442]
[1755214609014,0.39865,118560.0,118550.0,0.89735442]
[1755214609220,1.67555278,118560.0,118550.0,0.89735442]
[1755214609719,1.67555278,118560.0,118550.0,0.92120442]
[1755214612327,0.39865,118560.0,118550.0,0.92120442]
[1755214612522,1.67555278,118560.0,118550.0,0.92120442]
[1755214620918,1.67555278,118560.0,118550.0,0.13892442]
[1755214621128,0.10562,118550.0,118540.0,0.87603]
[1755214621329,0.74407139,118550.0,118540.0,0.87603]
[1755214623223,1.10487139,118550.0,118540.0,0.89921]
[1755214623428,0.63845139,118550.0,118540.0,0.89921]
[1755214623623,0.63845139,118550.0,118540.0,1.53846139]
[1755214624029,0.63845139,118550.0,118540.0,0.90101]
[1755214625942,0.63845139,118550.0,118540.0,1.26181]